fUST/lending_fUST_20250717
["ID","MTS","AMOUNT","RATE_DAILY","PERIOD"]
[372648226,1752733279822,460.0,0.00018036,2]
[372648227,1752733281551,486.72,0.00018032,2]
[372648228,1752733285233,460.0,0.00018036,2]
[372648229,1752733285932,1564.01,0.00018034,2]
[372648230,1752733287009,460.67570846,0.00018036,2]
[372648231,1752733289063,3068.27799146,0.00018035,2]
[372648232,1752733289094,10000.0,0.00018035,2]
[372648233,1752733289122,10000.0,0.00018035,2]
[372648234,1752733289150,10000.0,0.00018035,2]
[372648235,1752733289178,14000.0,0.00018035,2]
[372648236,1752733289205,14000.0,0.00018035,2]
[372648237,1752733289233,14000.0,0.00018035,2]
[372648238,1752733289261,14000.0,0.00018035,2]
[372648239,1752733289289,14000.0,0.00018035,2]
[372648240,1752733289319,14000.0,0.00018035,2]
[372648241,1752733289348,14000.0,0.00018035,2]
[372648242,1752733289382,9652.9766256,0.00018035,2]
[372648243,1752733291238,1028.15,0.00018036,2]
[372648244,1752733292206,500.0,0.00018035,2]
[372648245,1752733292459,500.0,0.00018035,2]
[372648246,1752733292733,500.0,0.00018035,2]
[372648247,1752733292998,500.0,0.00018036,2]
[372648248,1752733293347,500.0,0.00018036,2]
[372648249,1752733293573,304.23755328,0.00018037,2]
[372648250,1752733297479,460.0,0.00018032,2]
[372648251,1752733304150,54.63582112,0.00018032,2]
[372648252,1752733304177,405.36417888,0.00018032,2]
[372648253,1752733307232,460.0,0.00018032,2]
[372648254,1752733308954,3218.81,0.00018034,2]
[372648255,1752733309419,460.0,0.00018036,2]
[372648256,1752733310336,460.0,0.00018036,2]
[372648257,1752733313949,460.0,0.00018036,2]
[372648258,1752733316049,460.0,0.00018036,2]
[372648259,1752733316538,2230.95874422,0.00018015,2]
[372648260,1752733318051,460.0,0.00018036,2]
[372648261,1752733321484,561.25,0.00018032,2]
[372648262,1752733324829,460.0,0.00018035,2]
[372648263,1752733329932,652.79,0.00018035,2]
[372648264,1752733330627,460.0,0.00018032,2]
[372648265,1752733330978,223.31215409,0.00027396,120]
[372648266,1752733332361,739.96,0.00018034,2]
[372648267,1752733333082,460.0,0.00018032,2]
[372648268,1752733333982,530.92,0.00018032,2]
[372648269,1752733338232,500.0,0.00018036,2]
[372648270,1752733338474,500.0,0.00018037,2]
[372648271,1752733340755,499.62061165,0.00018035,2]
[372648272,1752733342066,20.32646525,0.00018037,2]
[372648273,1752733342093,479.67353475,0.00018037,2]
[372648274,1752733342325,500.0,0.00018037,2]
[372648275,1752733342588,500.0,0.00018037,2]
[372648277,1752733345118,500.0,0.00018037,2]
[372648278,1752733345367,500.0,0.00018037,2]
[372648279,1752733345623,500.0,0.00018037,2]
[372648280,1752733345861,571.40250719,0.00018037,2]
[372648281,1752733347191,460.0,0.00018032,2]
[372648282,1752733348914,460.0,0.00018035,2]
[372648283,1752733348980,460.0,0.00018036,2]
[372648284,1752733349808,569.65,0.00018032,2]
[372648285,1752733350084,813.95,0.00018034,2]
[372648286,1752733355429,587.58,0.00018032,2]
[372648287,1752733355709,460.0,0.00018036,2]
[372648288,1752733358221,460.0,0.00018036,2]
[372648289,1752733358998,462.30642249,0.00018032,2]
[372648290,1752733363085,460.0,0.00018036,2]
[372648291,1752733364470,460.0,0.00018032,2]
[372648292,1752733365143,460.0,0.00018035,2]
[372648293,1752733366454,460.0,0.00018032,2]
[372648295,1752733368022,460.0,0.00018036,2]
[372648296,1752733368636,460.0,0.00018032,2]
[372648298,1752733369630,460.0,0.00018035,2]
[372648299,1752733371252,460.0,0.00018032,2]
[372648300,1752733371347,573.08,0.00018035,2]
[372648304,1752733374754,460.0,0.00018036,2]
[372648308,1752733381946,460.0,0.00018032,2]
[372648309,1752733387106,542.35753557,0.00018032,2]
[372648310,1752733387131,56.33246443,0.00018032,2]
[372648311,1752733388775,-1203.38,0.00018127,3]
[372648312,1752733388808,-1200.0,0.00018131,2]
[372648313,1752733388841,-1624.131,0.00018131,2]
[372648314,1752733388877,-460.0,0.00018132,2]
[372648315,1752733388907,-460.0,0.00018132,2]
[372648316,1752733388936,-460.0,0.00018132,2]
[372648317,1752733388973,-460.0,0.00018132,2]
[372648318,1752733389008,-460.0,0.00018132,2]
[372648319,1752733389041,-460.0,0.00018132,2]
[372648320,1752733389073,-465.48708905,0.00018132,2]
[372648321,1752733389106,-7332.62932868,0.00018132,2]
[372648322,1752733389273,150.0,0.00015932,2]
[372648323,1752733389331,-26474.02194978,0.00018132,2]
[372648324,1752733389476,150.0,0.00016691,2]
[372648325,1752733391149,460.0,0.00018036,2]
[372648326,1752733391340,460.0,0.00018036,2]
[372648327,1752733394474,460.0,0.00018036,2]
[372648329,1752733400801,3085.2,0.00018032,2]
[372648330,1752733401401,460.0,0.00018032,2]
[372648331,1752733403844,-601.69,0.00018127,3]
[372648332,1752733403877,-460.0,0.00018131,2]
[372648333,1752733403910,-4354.72321476,0.00018132,2]
[372648334,1752733403943,-460.0,0.00018133,2]
[372648335,1752733403974,-460.0,0.00018133,2]
[372648336,1752733404006,-460.0,0.00018133,2]
[372648337,1752733404038,-460.0,0.00018133,2]
[372648338,1752733404071,-460.0,0.00018133,2]
[372648339,1752733404238,-226.44501998,0.00018133,2]
[372648340,1752733404273,-270.5954197,0.00018133,2]
[372648341,1752733404307,-460.0,0.00018133,2]
[372648342,1752733404340,-460.0,0.00018133,2]
[372648343,1752733404372,-460.0,0.00018133,2]
[372648344,1752733404406,-460.0,0.00018133,2]
[372648345,1752733404438,-151.0,0.00018133,2]
[372648346,1752733404474,-460.0,0.00018133,2]
[372648347,1752733404509,-460.0,0.00018133,2]
[372648348,1752733404542,-460.0,0.00018133,2]
[372648349,1752733404575,-460.0,0.00018133,2]
[372648350,1752733404610,-460.0,0.00018133,2]
[372648351,1752733404647,-1918.82,0.00018133,2]
[372648352,1752733404681,-460.0,0.00018133,2]
[372648353,1752733405100,-233.45269112,0.00018133,2]
[372648354,1752733405242,460.0,0.00018035,2]
[372648355,1752733407384,460.0,0.00018035,2]
[372648356,1752733409857,460.0,0.00018036,2]
[372648357,1752733410864,462.66374809,0.00018036,2]
[372648360,1752733415739,460.0,0.00018036,2]
[372648361,1752733416762,460.0,0.00018035,2]
[372648362,1752733419363,460.0,0.00018036,2]
[372648363,1752733419405,460.0,0.00018036,2]
[372648364,1752733425273,460.0,0.00018035,2]
[372648365,1752733430319,-460.0,0.00018131,2]
[372648366,1752733430355,-460.0,0.00018132,2]
[372648367,1752733430387,-460.0,0.00018132,2]
[372648368,1752733430420,-460.0,0.00018132,2]
[372648369,1752733430453,-460.0,0.00018132,2]
[372648370,1752733430486,-173.45269112,0.00018133,2]
[372648371,1752733430580,-53.09461776,0.00018133,2]
[372648372,1752733430642,460.0,0.00018032,2]
[372648376,1752733434359,886.16,0.00018032,2]
[372648377,1752733434481,312.65216914,0.00018032,2]
[372648378,1752733436581,460.0,0.00018036,2]
[372648379,1752733436775,460.0,0.00018036,2]
[372648380,1752733438703,460.0,0.00018036,2]
[372648382,1752733442866,460.0,0.00018032,2]
[372648384,1752733447778,460.0,0.00018036,2]
[372648385,1752733450588,616.99161834,0.00018033,2]
[372648386,1752733450615,14000.0,0.00018033,2]
[372648387,1752733450649,14000.0,0.00018033,2]
[372648388,1752733450678,14000.0,0.00018033,2]
[372648389,1752733450849,14000.0,0.00018033,2]
[372648390,1752733453979,250.0,0.00017937,2]
[372648391,1752733455860,900.0,0.00017676,2]
[372648392,1752733457050,16904.3862887,0.00017134,2]
[372648393,1752733461936,150.0,0.00015931,2]
[372648394,1752733462747,151.0,0.000175,2]
[372648396,1752733463105,151.0,0.000167,2]
[372648397,1752733463493,151.0,0.000159,2]
[372648398,1752733463927,151.0,0.000151,2]
[372648399,1752733464414,151.0,0.000143,2]
[372648400,1752733464603,151.0,0.000135,2]
[372648401,1752733464936,151.0,0.000126,2]
[372648402,1752733465246,151.0,0.000118,2]
[372648407,1752733513989,-902.54,0.00018023,3]
[372648408,1752733514036,-451.27,0.00018023,3]
[372648409,1752733514115,-225.63,0.00018023,3]
[372648410,1752733514164,-676.94,0.00018023,3]
[372648411,1752733514216,-300.0,0.00018031,2]
[372648412,1752733514258,-300.0,0.00018031,2]
[372648413,1752733514301,-300.0,0.00018031,2]
[372648414,1752733514343,-300.0,0.00018031,2]
[372648415,1752733514408,-460.0,0.00018032,2]
[372648416,1752733514463,-460.0,0.00018032,2]
[372648417,1752733514507,-460.0,0.00018032,2]
[372648418,1752733514553,-460.0,0.00018032,2]
[372648419,1752733516686,17421.90267111,0.00017935,2]
[372648420,1752733517670,-460.0,0.00018032,2]
[372648421,1752733517819,-1200.0,0.00018022,2]
[372648422,1752733519090,-500.0,0.00018032,2]
[372648423,1752733519128,-500.0,0.00018032,2]
[372648424,1752733519165,-500.0,0.00018032,2]
[372648425,1752733519202,-629.19750739,0.00018032,2]
[372648426,1752733520204,500.0,7.4e-07,120]
[372648427,1752733520311,-460.0,0.00018032,2]
[372648428,1752733522712,-460.0,0.00018032,2]
[372648429,1752733529019,-234.32574681,0.00018032,2]
[372648430,1752733529057,-500.0,0.00018032,2]
[372648431,1752733529102,-500.0,0.00018032,2]
[372648432,1752733529140,-555.14764078,0.00018032,2]
[372648433,1752733529177,-555.14764078,0.00018032,2]
[372648434,1752733529213,-394.65912441,0.00018032,2]
[372648435,1752733529249,-254.24941345,0.00018032,2]
[372648436,1752733529287,-555.14764078,0.00018032,2]
[372648437,1752733529329,-500.0,0.00018032,2]
[372648438,1752733529369,-555.14764078,0.00018032,2]
[372648439,1752733529409,-555.14764078,0.00018032,2]
[372648440,1752733529447,-500.0,0.00018032,2]
[372648441,1752733529486,-555.14764078,0.00018032,2]
[372648442,1752733529523,-555.14764078,0.00018032,2]
[372648443,1752733529562,-500.0,0.00018032,2]
[372648444,1752733529598,-555.14764078,0.00018032,2]
[372648445,1752733529635,-555.14764078,0.00018032,2]
[372648446,1752733529671,-567.82921311,0.00018032,2]
[372648447,1752733529710,-555.14764078,0.00018032,2]
[372648448,1752733529749,-439.77254806,0.00018032,2]
[372648449,1752733529998,-115.37509272,0.00018032,2]
[372648450,1752733530034,-555.14764078,0.00018032,2]
[372648451,1752733530073,-555.14764078,0.00018032,2]
[372648452,1752733530110,-555.14764078,0.00018032,2]
[372648453,1752733530147,-555.14764078,0.00018032,2]
[372648454,1752733530185,-555.14764078,0.00018032,2]
[372648455,1752733530222,-555.14764078,0.00018032,2]
[372648456,1752733530258,-555.14764078,0.00018032,2]
[372648457,1752733530421,-555.14764078,0.00018032,2]
[372648458,1752733530459,-555.14764078,0.00018032,2]
[372648459,1752733530495,-555.14764078,0.00018032,2]
[372648460,1752733530533,-555.14764078,0.00018032,2]
[372648461,1752733530572,-555.14764078,0.00018032,2]
[372648462,1752733530607,-555.14764078,0.00018032,2]
[372648463,1752733530642,-555.14764078,0.00018032,2]
[372648464,1752733530684,-555.14764078,0.00018032,2]
[372648465,1752733530721,-555.14764078,0.00018032,2]
[372648466,1752733530758,-555.14764078,0.00018032,2]
[372648467,1752733530795,-339.08238726,0.00018032,2]
[372648468,1752733531150,-216.06525352,0.00018032,2]
[372648469,1752733531187,-555.14764078,0.00018032,2]
[372648470,1752733531222,-555.14764078,0.00018032,2]
[372648471,1752733531257,-555.14764078,0.00018032,2]
[372648472,1752733531294,-555.14764078,0.00018032,2]
[372648473,1752733531332,-555.14764078,0.00018032,2]
[372648474,1752733531368,-555.14764078,0.00018032,2]
[372648475,1752733531405,-555.14764078,0.00018032,2]
[372648476,1752733531442,-555.14764078,0.00018032,2]
[372648477,1752733531481,-555.14764078,0.00018032,2]
[372648478,1752733531519,-555.14764078,0.00018032,2]
[372648479,1752733531560,-555.14764078,0.00018032,2]
[372648480,1752733531600,-1316.10426291,0.00018032,2]
[372648481,1752733531635,-555.14764078,0.00018032,2]
[372648482,1752733531677,-1316.10426291,0.00018032,2]
[372648483,1752733531714,-424.76142182,0.00018032,2]
[372648484,1752733532370,-130.38621896,0.00018032,2]
[372648485,1752733532409,-1316.10426291,0.00018032,2]
[372648486,1752733532448,-555.14764078,0.00018032,2]
[372648487,1752733532492,-1316.10426291,0.00018032,2]
[372648488,1752733532537,-555.14764078,0.00018032,2]
[372648489,1752733532575,-555.14764078,0.00018032,2]
[372648490,1752733532614,-1316.10426291,0.00018032,2]
[372648491,1752733532652,-555.14764078,0.00018032,2]
[372648492,1752733532691,-555.14764078,0.00018032,2]
[372648493,1752733532729,-555.14764078,0.00018032,2]
[372648494,1752733532768,-555.14764078,0.00018032,2]
[372648495,1752733532805,-555.14764078,0.00018032,2]
[372648496,1752733532845,-555.14764078,0.00018032,2]
[372648497,1752733532881,-555.14764078,0.00018032,2]
[372648498,1752733532917,-184.50152824,0.00018032,2]
[372648499,1752733533116,-370.64611254,0.00018032,2]
[372648500,1752733533153,-555.14764078,0.00018032,2]
[372648501,1752733533190,-555.14764078,0.00018032,2]
[372648502,1752733533338,-555.14764078,0.00018032,2]
[372648503,1752733533377,-555.14764078,0.00018032,2]
[372648504,1752733533415,-555.14764078,0.00018032,2]
[372648505,1752733533455,-555.14764078,0.00018032,2]
[372648506,1752733533495,-555.14764078,0.00018032,2]
[372648507,1752733533535,-1316.10426291,0.00018032,2]
[372648508,1752733533576,-555.14764078,0.00018032,2]
[372648509,1752733533616,-1316.10426291,0.00018032,2]
[372648510,1752733533653,-500.0,0.00018032,2]
[372648511,1752733533698,-500.0,0.00018032,2]
[372648512,1752733533738,-500.0,0.00018032,2]
[372648513,1752733533779,-500.0,0.00018032,2]
[372648514,1752733533818,-500.0,0.00018032,2]
[372648515,1752733534150,-1316.10426291,0.00018032,2]
[372648516,1752733534187,-500.0,0.00018032,2]
[372648517,1752733534223,-500.0,0.00018032,2]
[372648518,1752733534262,-1316.10426291,0.00018032,2]
[372648519,1752733534298,-500.0,0.00018032,2]
[372648520,1752733534337,-500.0,0.00018032,2]
[372648521,1752733534373,-500.0,0.00018032,2]
[372648522,1752733534410,-500.0,0.00018032,2]
[372648523,1752733534444,-500.0,0.00018032,2]
[372648524,1752733534479,-500.0,0.00018032,2]
[372648525,1752733534514,-500.0,0.00018032,2]
[372648526,1752733534549,-500.0,0.00018032,2]
[372648527,1752733534583,-500.0,0.00018032,2]
[372648528,1752733534619,-500.0,0.00018032,2]
[372648529,1752733534655,-500.0,0.00018032,2]
[372648530,1752733534690,-500.0,0.00018032,2]
[372648531,1752733534725,-235.58294836,0.00018032,2]
[372648532,1752733535098,-264.41705164,0.00018032,2]
[372648533,1752733535135,-500.0,0.00018032,2]
[372648534,1752733535171,-500.0,0.00018032,2]
[372648535,1752733535206,-500.0,0.00018032,2]
[372648536,1752733535243,-500.0,0.00018032,2]
[372648537,1752733535280,-500.0,0.00018032,2]
[372648538,1752733535319,-500.0,0.00018032,2]
[372648539,1752733535355,-500.0,0.00018032,2]
[372648540,1752733535391,-500.0,0.00018032,2]
[372648541,1752733535427,-500.0,0.00018032,2]
[372648542,1752733535465,-500.0,0.00018032,2]
[372648543,1752733535502,-500.0,0.00018032,2]
[372648544,1752733535536,-500.0,0.00018032,2]
[372648545,1752733535571,-500.0,0.00018032,2]
[372648546,1752733535606,-500.0,0.00018032,2]
[372648547,1752733535640,-500.0,0.00018032,2]
[372648548,1752733535678,-237.19566152,0.00018032,2]
[372648549,1752733535713,-500.0,0.00018032,2]
[372648550,1752733535749,-500.0,0.00018032,2]
[372648551,1752733535784,-500.0,0.00018032,2]
[372648552,1752733535820,-460.0,0.00018032,2]
[372648553,1752733537165,500.0,7.4e-07,120]
[372648555,1752733550101,500.0,7.4e-07,120]
[372648556,1752733553601,656.9060922,0.00017058,2]
[372648558,1752733562621,500.0,7.4e-07,120]
[372648564,1752733574147,500.0,7.4e-07,120]
[372648568,1752733578763,207.05359193,0.00017492,2]
[372648571,1752733583516,-300.0,0.00018031,2]
[372648572,1752733583551,-1200.0,0.00018031,2]
[372648573,1752733583587,-500.0,0.00018032,2]
[372648574,1752733583623,-500.0,0.00018032,2]
[372648575,1752733583657,-500.0,0.00018032,2]
[372648576,1752733583693,-400.0,0.00018032,2]
[372648577,1752733583728,-500.0,0.00018032,2]
[372648578,1752733583764,-500.0,0.00018032,2]
[372648579,1752733583799,-500.0,0.00018032,2]
[372648580,1752733584209,-500.0,0.00018032,2]
[372648581,1752733584245,-500.0,0.00018032,2]
[372648582,1752733584280,-500.0,0.00018032,2]
[372648583,1752733584316,-500.0,0.00018032,2]
[372648584,1752733584355,-500.0,0.00018032,2]
[372648585,1752733584395,-500.0,0.00018032,2]
[372648586,1752733584433,-500.0,0.00018032,2]
[372648588,1752733584470,-500.0,0.00018032,2]
[372648589,1752733584507,-500.0,0.00018032,2]
[372648590,1752733584545,-500.0,0.00018032,2]
[372648591,1752733584806,-500.0,0.00018032,2]
[372648592,1752733584842,-500.0,0.00018032,2]
[372648593,1752733584880,-500.0,0.00018032,2]
[372648594,1752733584916,-500.0,0.00018032,2]
[372648595,1752733584954,-2533.11407353,0.00018032,2]
[372648596,1752733585009,-933.77185294,0.00018032,2]
[372648597,1752733585046,-500.0,0.00018032,2]
[372648598,1752733585082,-500.0,0.00018032,2]
[372648599,1752733585120,-500.0,0.00018032,2]
[372648600,1752733585157,-500.0,0.00018032,2]
[372648601,1752733585193,-500.0,0.00018032,2]
[372648602,1752733585229,-500.0,0.00018032,2]
[372648603,1752733585267,-500.0,0.00018032,2]
[372648604,1752733585305,-500.0,0.00018032,2]
[372648605,1752733585604,-500.0,0.00018032,2]
[372648606,1752733585640,-500.0,0.00018032,2]
[372648607,1752733585680,-3466.88592647,0.00018032,2]
[372648608,1752733585717,-500.0,0.00018032,2]
[372648610,1752733586021,-500.0,0.00018032,2]
[372648611,1752733586058,-500.0,0.00018032,2]
[372648612,1752733586094,-500.0,0.00018032,2]
[372648613,1752733586133,-500.0,0.00018032,2]
[372648614,1752733586170,-500.0,0.00018032,2]
[372648615,1752733586204,-500.0,0.00018032,2]
[372648616,1752733586239,-526.91710465,0.00018032,2]
[372648617,1752733586271,-460.0,0.00018032,2]
[372648618,1752733586304,-460.0,0.00018032,2]
[372648619,1752733586335,-460.0,0.00018032,2]
[372648620,1752733586471,-1498.85,0.00018032,2]
[372648621,1752733586503,-190.40801784,0.00018032,2]
[372648622,1752733586535,-460.0,0.00018032,2]
[372648623,1752733586566,-460.0,0.00018032,2]
[372648624,1752733586600,-672.11,0.00018032,2]
[372648625,1752733586632,-460.0,0.00018032,2]
[372648626,1752733586662,-460.0,0.00018032,2]
[372648627,1752733589632,-460.0,0.00018032,2]
[372648629,1752733594614,-500.0,0.00018032,2]
[372648630,1752733594651,-500.0,0.00018032,2]
[372648631,1752733594691,-500.0,0.00018032,2]
[372648632,1752733594724,-460.0,0.00018032,2]
[372648633,1752733595213,-460.0,0.00018032,2]
[372648636,1752733598124,596.53684257,0.00017935,2]
[372648637,1752733602196,-832.97774504,0.00018033,2]
[372648638,1752733602234,-10000.0,0.00018033,2]
[372648639,1752733603915,500.0,7.4e-07,120]
[372648642,1752733616203,500.0,7.4e-07,120]
[372648652,1752733640183,-300.0,0.00018031,2]
[372648653,1752733640218,-460.0,0.00018032,2]
[372648654,1752733640258,-2300.45,0.00018032,2]
[372648655,1752733640296,-460.0,0.00018032,2]
[372648656,1752733640329,-460.0,0.00018032,2]
[372648657,1752733640363,-346.42463985,0.00018032,2]
[372648658,1752733640397,-460.0,0.00018032,2]
[372648659,1752733640527,-460.0,0.00018032,2]
[372648660,1752733640562,-865.31,0.00018032,2]
[372648661,1752733640596,-460.0,0.00018032,2]
[372648662,1752733640630,-621.82,0.00018032,2]
[372648663,1752733640665,-460.0,0.00018032,2]
[372648664,1752733640699,-460.0,0.00018032,2]
[372648665,1752733640732,-460.0,0.00018032,2]
[372648666,1752733641001,-460.0,0.00018032,2]
[372648667,1752733641019,-2425.74,0.00018033,2]
[372648668,1752733641051,-10000.0,0.00018033,2]
[372648669,1752733641090,-10000.0,0.00018033,2]
[372648670,1752733641156,-10000.0,0.00018033,2]
[372648671,1752733641363,-10000.0,0.00018033,2]
[372648672,1752733641663,-10000.0,0.00018033,2]
[372648673,1752733641863,-10000.0,0.00018033,2]
[372648674,1752733642024,-10000.0,0.00018033,2]
[372648675,1752733642365,-10000.0,0.00018033,2]
[372648676,1752733642634,-10000.0,0.00018033,2]
[372648677,1752733642819,-10000.0,0.00018033,2]
[372648678,1752733643004,-10000.0,0.00018033,2]
[372648679,1752733643180,-460.0,0.00018032,2]
[372648681,1752733643223,-9080.0,0.00018033,2]
[372648682,1752733643358,-10000.0,0.00018033,2]
[372648683,1752733643544,-10000.0,0.00018033,2]
[372648684,1752733643823,-10000.0,0.00018033,2]
[372648685,1752733644013,-10000.0,0.00018033,2]
[372648686,1752733644221,-10000.0,0.00018033,2]
[372648687,1752733644418,-10000.0,0.00018033,2]
[372648689,1752733645104,-10000.0,0.00018033,2]
[372648690,1752733645127,-10000.0,0.00018033,2]
[372648691,1752733645159,-10000.0,0.00018033,2]
[372648692,1752733645176,-10000.0,0.00018033,2]
[372648693,1752733645285,-10000.0,0.00018033,2]
[372648694,1752733647077,-10000.0,0.00018033,2]
[372648697,1752733648534,-10000.0,0.00018033,2]
[372648698,1752733648656,-10000.0,0.00018033,2]
[372648699,1752733648775,225.00448196,0.00017985,2]
[372648700,1752733648989,-10000.0,0.00018033,2]
[372648701,1752733649158,-10000.0,0.00018033,2]
[372648702,1752733670563,1605.09286772,0.00018,2]
[372648704,1752733674219,500.0,7.4e-07,120]
[372648706,1752733683794,-300.0,0.00018031,2]
[372648707,1752733683839,-526.91710465,0.00018032,2]
[372648708,1752733683881,-2671.4457907,0.00018032,2]
[372648709,1752733683963,-3003.2742093,0.00018032,2]
[372648710,1752733684020,-460.0,0.00018032,2]
[372648711,1752733684054,-460.0,0.00018032,2]
[372648712,1752733684099,-460.0,0.00018032,2]
[372648713,1752733684135,-460.0,0.00018032,2]
[372648714,1752733684171,-460.0,0.00018032,2]
[372648715,1752733684297,-5400.0,0.00018033,2]
[372648716,1752733684373,-10000.0,0.00018033,2]
[372648717,1752733684587,-4355.70936338,0.00018033,2]
[372648718,1752733684616,-1288.58127324,0.00018033,2]
[372648719,1752733684793,-460.0,0.00018035,2]
[372648720,1752733684832,-537.86,0.00018035,2]
[372648721,1752733684870,-460.0,0.00018035,2]
[372648722,1752733684907,-460.0,0.00018035,2]
[372648723,1752733684944,-460.0,0.00018035,2]
[372648724,1752733684983,-2071.58,0.00018035,2]
[372648725,1752733685102,-1101.12,0.00018035,2]
[372648726,1752733685147,-460.0,0.00018035,2]
[372648727,1752733685186,-1038.56,0.00018035,2]
[372648728,1752733685223,-1737.46,0.00018035,2]
[372648729,1752733685321,-3527.96,0.00018036,2]
[372648730,1752733685517,-10000.0,0.00018036,2]
[372648732,1752733685629,-10000.0,0.00018036,2]
[372648733,1752733686006,-160.0,0.00018033,2]
[372648734,1752733686064,-9680.0,0.00018036,2]
[372648735,1752733686081,-10000.0,0.00018036,2]
[372648736,1752733686210,-3207.96,0.00018036,2]
[372648737,1752733686244,-3584.08,0.00018036,2]
[372648738,1752733686402,-460.0,0.00018036,2]
[372648739,1752733686438,-460.0,0.00018036,2]
[372648740,1752733686474,-460.0,0.00018036,2]
[372648741,1752733686509,-460.0,0.00018036,2]
[372648742,1752733686545,-674.33,0.00018036,2]
[372648743,1752733686578,-460.0,0.00018036,2]
[372648744,1752733686611,-460.0,0.00018036,2]
[372648745,1752733686645,-460.0,0.00018036,2]
[372648746,1752733686681,-460.0,0.00018036,2]
[372648747,1752733686722,-460.0,0.00018036,2]
[372648748,1752733686894,-460.0,0.00018036,2]
[372648749,1752733686926,-500.0,0.00018036,2]
[372648750,1752733686963,-460.0,0.00018036,2]
[372648751,1752733686996,-460.0,0.00018036,2]
[372648752,1752733687028,-460.0,0.00018036,2]
[372648753,1752733687060,-535.8635729,0.00018036,2]
[372648754,1752733687093,-460.0,0.00018036,2]
[372648755,1752733687126,-460.0,0.00018036,2]
[372648756,1752733687158,-460.0,0.00018036,2]
[372648757,1752733687193,-460.0,0.00018036,2]
[372648758,1752733687226,-276.09465537,0.00018036,2]
[372648759,1752733687527,-460.0,0.00018032,2]
[372648760,1752733687562,-16.08354346,0.00018036,2]
[372648761,1752733687595,-460.0,0.00018036,2]
[372648762,1752733687631,-460.0,0.00018036,2]
[372648763,1752733687664,-272.9956442,0.00018036,2]
[372648764,1752733687700,-461.93332687,0.00018036,2]
[372648765,1752733687742,-460.0,0.00018036,2]
[372648766,1752733687775,-460.0,0.00018036,2]
[372648767,1752733687810,-462.06698357,0.00018036,2]
[372648768,1752733687844,-460.0,0.00018036,2]
[372648769,1752733687879,-460.0,0.00018036,2]
[372648770,1752733687913,-460.0,0.00018036,2]
[372648771,1752733688289,-460.0,0.00018036,2]
[372648772,1752733688324,-460.0,0.00018036,2]
[372648773,1752733688360,-460.0,0.00018036,2]
[372648774,1752733688395,-500.0,0.00018036,2]
[372648775,1752733688436,-460.0,0.00018036,2]
[372648776,1752733688474,-460.0,0.00018036,2]
[372648777,1752733688512,-460.0,0.00018036,2]
[372648778,1752733688550,-460.0,0.00018036,2]
[372648779,1752733688588,-460.0,0.00018036,2]
[372648780,1752733688626,-460.0,0.00018036,2]
[372648781,1752733688662,-260.0,0.00018036,2]
[372648782,1752733688736,-200.0,0.00018036,2]